[Event "Early-Titled-Tuesday-Blitz-January-30-2024"]
[Site "Chess.com"]
[Date "2024.01.30"]
[Round "4"]
[White "K_A_S_T_O_R"]
[Black "Snegokhod"]
[Result "1-0"]
[WhiteElo "2911"]
[BlackElo "2570"]
[TimeControl "180+1"]
[EndTime "8:40:59 PST"]
[Termination "K_A_S_T_O_R won by resignation"]

1. e4 {[%clk 0:03:00.9]} 1... g6 {[%clk 0:02:58.1]} 2. d4 {[%clk 0:02:59]} 2...
b6 {[%clk 0:02:56]} 3. Nf3 {[%clk 0:02:58.3]} 3... Bb7 {[%clk 0:02:55.5]} 4. Bd3
{[%clk 0:02:55.6]} 4... Bg7 {[%clk 0:02:55.9]} 5. O-O {[%clk 0:02:55.8]} 5... e6
{[%clk 0:02:55.9]} 6. Re1 {[%clk 0:02:56.4]} 6... Ne7 {[%clk 0:02:55.7]} 7. c3
{[%clk 0:02:56.4]} 7... O-O {[%clk 0:02:54.4]} 8. Nbd2 {[%clk 0:02:54.6]} 8...
d6 {[%clk 0:02:52.9]} 9. Nf1 {[%clk 0:02:54.8]} 9... Nd7 {[%clk 0:02:52.2]} 10.
Ng3 {[%clk 0:02:55.3]} 10... c5 {[%clk 0:02:49.7]} 11. Be3 {[%clk 0:02:54]}
11... cxd4 {[%clk 0:02:49]} 12. cxd4 {[%clk 0:02:54]} 12... Rc8 {[%clk
0:02:48.1]} 13. Qd2 {[%clk 0:02:53.9]} 13... e5 {[%clk 0:02:30.4]} 14. Bh6
{[%clk 0:02:44.6]} 14... Nc6 {[%clk 0:02:20.5]} 15. Bxg7 {[%clk 0:02:41.6]}
15... Kxg7 {[%clk 0:02:20.1]} 16. d5 {[%clk 0:02:38.9]} 16... Ne7 {[%clk
0:02:15.4]} 17. b4 {[%clk 0:02:38.9]} 17... Ng8 {[%clk 0:02:09.6]} 18. Rac1
{[%clk 0:02:34.4]} 18... Qe7 {[%clk 0:02:08]} 19. Bb5 {[%clk 0:02:31.4]} 19...
Ndf6 {[%clk 0:02:01.7]} 20. Bc6 {[%clk 0:02:31]} 20... Rc7 {[%clk 0:01:54]} 21.
Bxb7 {[%clk 0:02:15.3]} 21... Rxb7 {[%clk 0:01:53.9]} 22. Rc6 {[%clk 0:02:16]}
22... Rc7 {[%clk 0:01:40.6]} 23. Rec1 {[%clk 0:02:13.9]} 23... Rfc8 {[%clk
0:01:41.1]} 24. Qg5 {[%clk 0:02:00.8]} 24... Kf8 {[%clk 0:01:21.9]} 25. b5
{[%clk 0:01:51.1]} 25... Ne8 {[%clk 0:01:16.1]} 26. Qd2 {[%clk 0:01:47]} 26...
Kg7 {[%clk 0:01:01.3]} 27. h3 {[%clk 0:01:43.2]} 27... h6 {[%clk 0:01:00.9]} 28.
a4 {[%clk 0:01:40.5]} 28... Qd7 {[%clk 0:00:59.2]} 29. Qd3 {[%clk 0:01:34.9]}
29... Ne7 {[%clk 0:00:57.7]} 30. Nd2 {[%clk 0:01:25.1]} 30... Nxc6 {[%clk
0:00:57]} 31. dxc6 {[%clk 0:01:22.4]} 31... Qe6 {[%clk 0:00:56.9]} 32. Nc4
{[%clk 0:01:23]} 32... Nf6 {[%clk 0:00:43.9]} 33. Ne3 {[%clk 0:01:19.7]} 33...
Rd8 {[%clk 0:00:41.8]} 34. Rd1 {[%clk 0:01:18.4]} 34... a6 {[%clk 0:00:34.2]}
35. Nd5 {[%clk 0:01:08.3]} 35... Nxd5 {[%clk 0:00:33.1]} 36. exd5 {[%clk
0:01:08.9]} 36... Qc8 {[%clk 0:00:31.7]} 37. Qe3 {[%clk 0:01:04.4]} 37... axb5
{[%clk 0:00:31.4]} 38. axb5 {[%clk 0:01:04.9]} 38... Qb8 {[%clk 0:00:31.1]} 39.
Ne4 {[%clk 0:01:02.3]} 39... Re7 {[%clk 0:00:29.3]} 40. Nd2 {[%clk 0:00:59.1]}
40... f5 {[%clk 0:00:25.3]} 41. Nc4 {[%clk 0:00:59.5]} 41... Qa7 {[%clk
0:00:16.8]} 42. Qxb6 {[%clk 0:00:54.4]} 42... Qxb6 {[%clk 0:00:13.1]} 43. Nxb6
{[%clk 0:00:54.8]} 43... Rb8 {[%clk 0:00:13.8]} 44. Nc4 {[%clk 0:00:52.6]} 44...
Rxb5 {[%clk 0:00:13.9]} 45. Nxd6 {[%clk 0:00:52.9]} 45... Rc5 {[%clk 0:00:13.4]}
46. Nb7 {[%clk 0:00:44.8]} 46... Rxb7 {[%clk 0:00:11.9]} 47. cxb7 {[%clk
0:00:44.6]} 47... Rb5 {[%clk 0:00:12.6]} 48. d6 {[%clk 0:00:43.8]} 48... Rxb7
{[%clk 0:00:10.9]} 49. d7 {[%clk 0:00:44]} 1-0

[Event "Early-Titled-Tuesday-Blitz-January-30-2024"]
[Site "Chess.com"]
[Date "2024.01.30"]
[Round "4"]
[White "FormerProdigy"]
[Black "kleinebeer98"]
[Result "1/2-1/2"]
[WhiteElo "3024"]
[BlackElo "2864"]
[TimeControl "180+1"]
[EndTime "8:41:01 PST"]
[Termination "Game drawn by repetition"]

1. e4 {[%clk 0:03:00.9]} 1... e5 {[%clk 0:03:00.1]} 2. Nf3 {[%clk 0:03:00.7]}
2... Nc6 {[%clk 0:03:00.8]} 3. Bb5 {[%clk 0:03:00.9]} 3... f5 {[%clk 0:03:01.1]}
4. d3 {[%clk 0:02:59.1]} 4... fxe4 {[%clk 0:03:01.4]} 5. dxe4 {[%clk 0:03:00]}
5... Nf6 {[%clk 0:03:01.9]} 6. Bc4 {[%clk 0:02:58.3]} 6... Bb4+ {[%clk
0:02:58.1]} 7. Bd2 {[%clk 0:02:50.6]} 7... Bxd2+ {[%clk 0:02:56.2]} 8. Nbxd2
{[%clk 0:02:51.5]} 8... d6 {[%clk 0:02:51.7]} 9. c3 {[%clk 0:02:50.9]} 9... Qe7
{[%clk 0:02:42.3]} 10. Qb3 {[%clk 0:02:45.2]} 10... a6 {[%clk 0:02:42.1]} 11.
O-O {[%clk 0:02:38.6]} 11... b5 {[%clk 0:02:24]} 12. Bd5 {[%clk 0:02:29.1]}
12... Nxd5 {[%clk 0:02:23.6]} 13. exd5 {[%clk 0:02:30]} 13... Nd8 {[%clk
0:02:15]} 14. a4 {[%clk 0:02:30.2]} 14... Rb8 {[%clk 0:02:10]} 15. axb5 {[%clk
0:02:29.7]} 15... axb5 {[%clk 0:02:09.6]} 16. Ra7 {[%clk 0:02:14.3]} 16... O-O
{[%clk 0:02:06.9]} 17. Re1 {[%clk 0:02:00.3]} 17... Kh8 {[%clk 0:01:47.8]} 18.
c4 {[%clk 0:01:56.7]} 18... Bf5 {[%clk 0:01:10]} 19. cxb5 {[%clk 0:01:48.9]}
19... Nb7 {[%clk 0:01:10.7]} 20. Qc4 {[%clk 0:01:35]} 20... Nc5 {[%clk
0:00:52.8]} 21. b4 {[%clk 0:01:35.4]} 21... Nd3 {[%clk 0:00:53.5]} 22. Rxc7
{[%clk 0:01:35.9]} 22... Qf6 {[%clk 0:00:48.1]} 23. Ne4 {[%clk 0:01:26.8]} 23...
Bxe4 {[%clk 0:00:38.2]} 24. Rxe4 {[%clk 0:01:27.7]} 24... Nf4 {[%clk 0:00:36.6]}
25. Re3 {[%clk 0:01:00.6]} 25... Ra8 {[%clk 0:00:24.2]} 26. Qe4 {[%clk
0:00:22.1]} 26... Ra1+ {[%clk 0:00:14]} 27. Re1 {[%clk 0:00:22.6]} 27... Rxe1+
{[%clk 0:00:14.3]} 28. Qxe1 {[%clk 0:00:23.5]} 28... Nxg2 {[%clk 0:00:12.8]} 29.
Qe4 {[%clk 0:00:23.9]} 29... Nh4 {[%clk 0:00:03]} 30. Qxh4 {[%clk 0:00:20.3]}
30... Qxf3 {[%clk 0:00:03.6]} 31. b6 {[%clk 0:00:12.1]} 31... Qd1+ {[%clk
0:00:02.8]} 32. Kg2 {[%clk 0:00:12.7]} 32... Qf3+ {[%clk 0:00:03.3]} 33. Kg1
{[%clk 0:00:13.2]} 33... Qd1+ {[%clk 0:00:03.9]} 34. Kg2 {[%clk 0:00:13.9]}
34... Qxd5+ {[%clk 0:00:03.7]} 35. Kg1 {[%clk 0:00:14.1]} 35... Qd1+ {[%clk
0:00:03.8]} 36. Kg2 {[%clk 0:00:14.3]} 36... Qf3+ {[%clk 0:00:04.4]} 37. Kg1
{[%clk 0:00:14.8]} 37... Qd1+ {[%clk 0:00:04]} 38. Kg2 {[%clk 0:00:15.7]} 38...
Qf3+ {[%clk 0:00:03.6]} 39. Kg1 {[%clk 0:00:16.1]} 39... Qd1+ {[%clk 0:00:04.2]}
1/2-1/2

[Event "Early-Titled-Tuesday-Blitz-January-30-2024"]
[Site "Chess.com"]
[Date "2024.01.30"]
[Round "4"]
[White "SchmakAttack"]
[Black "vishwa_vijeta"]
[Result "1-0"]
[WhiteElo "2743"]
[BlackElo "2547"]
[TimeControl "180+1"]
[EndTime "8:41:01 PST"]
[Termination "SchmakAttack won on time"]

1. d4 {[%clk 0:03:00]} 1... Nf6 {[%clk 0:02:55.6]} 2. Nf3 {[%clk 0:02:59.6]}
2... g6 {[%clk 0:02:51.5]} 3. c4 {[%clk 0:02:56.2]} 3... Bg7 {[%clk 0:02:50]} 4.
Nc3 {[%clk 0:02:56.1]} 4... d5 {[%clk 0:02:48.8]} 5. cxd5 {[%clk 0:02:54.2]}
5... Nxd5 {[%clk 0:02:48.3]} 6. e4 {[%clk 0:02:54.4]} 6... Nxc3 {[%clk
0:02:47.6]} 7. bxc3 {[%clk 0:02:55.3]} 7... c5 {[%clk 0:02:43.3]} 8. Rb1 {[%clk
0:02:54.7]} 8... O-O {[%clk 0:02:37.1]} 9. Be2 {[%clk 0:02:44.4]} 9... Bg4
{[%clk 0:02:34]} 10. Rxb7 {[%clk 0:02:24.4]} 10... Nc6 {[%clk 0:02:26]} 11. O-O
{[%clk 0:02:00.2]} 11... Bxf3 {[%clk 0:02:18.8]} 12. Bxf3 {[%clk 0:02:01.1]}
12... cxd4 {[%clk 0:02:18.1]} 13. cxd4 {[%clk 0:02:01.4]} 13... Nxd4 {[%clk
0:02:13.5]} 14. Ba3 {[%clk 0:02:00.9]} 14... Qc8 {[%clk 0:01:55.1]} 15. Rxe7
{[%clk 0:01:25.4]} 15... Rd8 {[%clk 0:01:46.2]} 16. e5 {[%clk 0:01:25.3]} 16...
Nc6 {[%clk 0:01:12.9]} 17. Qe2 {[%clk 0:01:06.2]} 17... Bf8 {[%clk 0:00:55.7]}
18. Bxc6 {[%clk 0:00:42.2]} 18... Qxc6 {[%clk 0:00:51.4]} 19. Qe3 {[%clk
0:00:38.3]} 19... Qa6 {[%clk 0:00:43.5]} 20. Qf4 {[%clk 0:00:26.4]} 20... Bxe7
{[%clk 0:00:22.9]} 21. Bxe7 {[%clk 0:00:27.3]} 21... Qxa2 {[%clk 0:00:20.2]} 22.
Bxd8 {[%clk 0:00:18]} 22... Rxd8 {[%clk 0:00:18.5]} 23. h4 {[%clk 0:00:18.4]}
23... Qe6 {[%clk 0:00:16.2]} 24. Ra1 {[%clk 0:00:16.2]} 24... Qd7 {[%clk
0:00:14.7]} 25. Qf6 {[%clk 0:00:14.6]} 25... h5 {[%clk 0:00:14.1]} 26. Rxa7
{[%clk 0:00:12.3]} 26... Qd1+ {[%clk 0:00:10.6]} 27. Kh2 {[%clk 0:00:11.8]}
27... Qd5 {[%clk 0:00:04.7]} 28. e6 {[%clk 0:00:07.3]} 1-0

[Event "Early-Titled-Tuesday-Blitz-January-30-2024"]
[Site "Chess.com"]
[Date "2024.01.30"]
[Round "4"]
[White "FabianoCaruana"]
[Black "Alex_Sahakyan2006"]
[Result "1-0"]
[WhiteElo "3061"]
[BlackElo "2876"]
[TimeControl "180+1"]
[EndTime "8:41:02 PST"]
[Termination "FabianoCaruana won on time"]

1. d4 {[%clk 0:03:00.9]} 1... Nf6 {[%clk 0:02:52.9]} 2. c4 {[%clk 0:03:01.2]}
2... c5 {[%clk 0:02:50.6]} 3. d5 {[%clk 0:03:01.1]} 3... b5 {[%clk 0:02:50.6]}
4. cxb5 {[%clk 0:03:01]} 4... a6 {[%clk 0:02:51.2]} 5. bxa6 {[%clk 0:03:00.8]}
5... e6 {[%clk 0:02:51.7]} 6. Nc3 {[%clk 0:02:59.1]} 6... exd5 {[%clk
0:02:52.1]} 7. Nxd5 {[%clk 0:02:59.5]} 7... Be7 {[%clk 0:02:52.8]} 8. e3 {[%clk
0:02:49]} 8... Nxd5 {[%clk 0:02:45.1]} 9. Qxd5 {[%clk 0:02:47.7]} 9... Nc6
{[%clk 0:02:45.8]} 10. Nf3 {[%clk 0:02:43.4]} 10... Bxa6 {[%clk 0:02:43.1]} 11.
Bxa6 {[%clk 0:02:42.8]} 11... Qa5+ {[%clk 0:02:43.2]} 12. Qd2 {[%clk 0:02:37.3]}
12... Qxa6 {[%clk 0:02:42.5]} 13. Qe2 {[%clk 0:02:37.5]} 13... Nb4 {[%clk
0:02:36.3]} 14. Qxa6 {[%clk 0:02:36.3]} 14... Rxa6 {[%clk 0:02:37.1]} 15. Ke2
{[%clk 0:02:20.2]} 15... Nxa2 {[%clk 0:02:06.9]} 16. Bd2 {[%clk 0:02:18]} 16...
Bf6 {[%clk 0:02:01.8]} 17. Rab1 {[%clk 0:01:58.8]} 17... O-O {[%clk 0:01:56.9]}
18. Rhd1 {[%clk 0:01:58.7]} 18... Rb8 {[%clk 0:01:53.7]} 19. Be1 {[%clk
0:01:55.3]} 19... d6 {[%clk 0:01:50.9]} 20. Nd2 {[%clk 0:01:35.1]} 20... Ra4
{[%clk 0:01:42]} 21. Nf3 {[%clk 0:01:30.7]} 21... Ra6 {[%clk 0:01:42.1]} 22. b3
{[%clk 0:01:30.3]} 22... Rab6 {[%clk 0:01:07.4]} 23. g4 {[%clk 0:01:29.1]} 23...
h6 {[%clk 0:01:04.8]} 24. h4 {[%clk 0:01:26.7]} 24... Rxb3 {[%clk 0:00:55.5]}
25. Rxb3 {[%clk 0:01:25.2]} 25... Rxb3 {[%clk 0:00:56.4]} 26. Rxd6 {[%clk
0:01:23.9]} 26... c4 {[%clk 0:00:53.3]} 27. g5 {[%clk 0:01:22.2]} 27... hxg5
{[%clk 0:00:49.9]} 28. hxg5 {[%clk 0:01:21.2]} 28... Bc3 {[%clk 0:00:43.8]} 29.
Rc6 {[%clk 0:01:10.5]} 29... Bxe1 {[%clk 0:00:39.4]} 30. Kxe1 {[%clk 0:01:10]}
30... c3 {[%clk 0:00:34.3]} 31. Nd4 {[%clk 0:01:05.5]} 31... Rb2 {[%clk
0:00:31.1]} 32. Kf1 {[%clk 0:01:02.7]} 32... Rd2 {[%clk 0:00:15.8]} 33. Kg2
{[%clk 0:00:57.4]} 33... Rd3 {[%clk 0:00:13.4]} 34. Kf3 {[%clk 0:00:48.7]} 34...
Rd2 {[%clk 0:00:10.8]} 35. Kg3 {[%clk 0:00:46.8]} 35... Kh7 {[%clk 0:00:09.4]}
36. f4 {[%clk 0:00:44.9]} 36... Rd3 {[%clk 0:00:07]} 37. Kf3 {[%clk 0:00:45.1]}
37... Nb4 {[%clk 0:00:07.1]} 38. Rc4 {[%clk 0:00:38.6]} 38... Na2 {[%clk
0:00:02]} 39. f5 {[%clk 0:00:33.7]} 39... Nc1 {[%clk 0:00:01.7]} 40. Rc6 {[%clk
0:00:31]} 40... Na2 {[%clk 0:00:01.3]} 41. g6+ {[%clk 0:00:28.6]} 41... fxg6
{[%clk 0:00:01.4]} 42. fxg6+ {[%clk 0:00:29.5]} 42... Kh6 {[%clk 0:00:02.1]} 43.
Kg4 {[%clk 0:00:29.1]} 43... Rxd4+ {[%clk 0:00:01.6]} 44. exd4 {[%clk 0:00:30]}
1-0

[Event "Early-Titled-Tuesday-Blitz-January-30-2024"]
[Site "Chess.com"]
[Date "2024.01.30"]
[Round "4"]
[White "artin10862"]
[Black "Sina_Movahed"]
[Result "0-1"]
[WhiteElo "2857"]
[BlackElo "3038"]
[TimeControl "180+1"]
[EndTime "8:41:03 PST"]
[Termination "Sina_Movahed won on time"]

1. b3 {[%clk 0:02:59.4]} 1... d5 {[%clk 0:02:56.7]} 2. Nf3 {[%clk 0:02:58.2]}
2... c5 {[%clk 0:02:52.9]} 3. e3 {[%clk 0:02:53.4]} 3... Nc6 {[%clk 0:02:44.3]}
4. Bb5 {[%clk 0:02:51.4]} 4... Bd7 {[%clk 0:02:42.6]} 5. Bb2 {[%clk 0:02:47.6]}
5... Rc8 {[%clk 0:02:37.3]} 6. O-O {[%clk 0:02:46.5]} 6... e6 {[%clk 0:02:36.6]}
7. c4 {[%clk 0:02:34]} 7... dxc4 {[%clk 0:02:33.5]} 8. Bxc4 {[%clk 0:02:33.3]}
8... Nf6 {[%clk 0:02:32.8]} 9. Nc3 {[%clk 0:02:28]} 9... Be7 {[%clk 0:02:29.5]}
10. a3 {[%clk 0:02:18.7]} 10... a6 {[%clk 0:02:28.6]} 11. Qc2 {[%clk 0:02:17.8]}
11... b5 {[%clk 0:02:26.6]} 12. Be2 {[%clk 0:02:17.3]} 12... O-O {[%clk
0:02:26.6]} 13. Rac1 {[%clk 0:02:12.6]} 13... Qb6 {[%clk 0:02:26]} 14. Ne4
{[%clk 0:02:10.7]} 14... Nxe4 {[%clk 0:02:24.3]} 15. Qxe4 {[%clk 0:02:11.6]}
15... Rfd8 {[%clk 0:02:16.9]} 16. Rfd1 {[%clk 0:02:04.2]} 16... Be8 {[%clk
0:02:12.2]} 17. Qg4 {[%clk 0:01:54]} 17... Bf8 {[%clk 0:02:10.3]} 18. h4 {[%clk
0:01:44]} 18... h6 {[%clk 0:02:08.6]} 19. h5 {[%clk 0:01:38.9]} 19... Qb7 {[%clk
0:01:50.1]} 20. Qg3 {[%clk 0:01:32.5]} 20... Rd5 {[%clk 0:01:38]} 21. Nh2 {[%clk
0:01:30.2]} 21... Rg5 {[%clk 0:01:36.5]} 22. Qh3 {[%clk 0:01:25.9]} 22... Na5
{[%clk 0:01:25.7]} 23. f4 {[%clk 0:01:04.7]} 23... Rf5 {[%clk 0:01:13.7]} 24.
Rc3 {[%clk 0:00:48.6]} 24... b4 {[%clk 0:01:10.9]} 25. axb4 {[%clk 0:00:42.1]}
25... cxb4 {[%clk 0:01:11.8]} 26. Rxc8 {[%clk 0:00:33.3]} 26... Qxc8 {[%clk
0:01:12.7]} 27. Bd3 {[%clk 0:00:29.4]} 27... Rd5 {[%clk 0:00:55.4]} 28. Be4
{[%clk 0:00:29.2]} 28... Rc5 {[%clk 0:00:47.9]} 29. d4 {[%clk 0:00:17.5]} 29...
Rc2 {[%clk 0:00:46.4]} 30. Ba1 {[%clk 0:00:12.8]} 30... Nxb3 {[%clk 0:00:45.4]}
31. Nf3 {[%clk 0:00:07.4]} 31... Rc1 {[%clk 0:00:43.8]} 32. Rxc1 {[%clk
0:00:05]} 32... Qxc1+ {[%clk 0:00:44.7]} 33. Kh2 {[%clk 0:00:05.9]} 33... Nxa1
{[%clk 0:00:39.3]} 34. f5 {[%clk 0:00:05.7]} 34... Qxe3 {[%clk 0:00:37.8]} 35.
Qg4 {[%clk 0:00:05.8]} 35... Bd7 {[%clk 0:00:31.7]} 36. f6 {[%clk 0:00:05.6]}
36... Nb3 {[%clk 0:00:27.2]} 37. Ne5 {[%clk 0:00:02.3]} 37... Qxd4 {[%clk
0:00:22.8]} 0-1

[Event "Early-Titled-Tuesday-Blitz-January-30-2024"]
[Site "Chess.com"]
[Date "2024.01.30"]
[Round "4"]
[White "IMRosen"]
[Black "maciejbrzeski128"]
[Result "1-0"]
[WhiteElo "2722"]
[BlackElo "2431"]
[TimeControl "180+1"]
[EndTime "8:41:04 PST"]
[Termination "IMRosen won on time"]

1. e4 {[%clk 0:03:00.9]} 1... c5 {[%clk 0:02:59.7]} 2. Nc3 {[%clk 0:02:56.9]}
2... Nc6 {[%clk 0:03:00]} 3. Bb5 {[%clk 0:02:55.9]} 3... g6 {[%clk 0:03:00.3]}
4. Bxc6 {[%clk 0:02:53.6]} 4... dxc6 {[%clk 0:02:58.9]} 5. d3 {[%clk 0:02:54.1]}
5... Bg7 {[%clk 0:02:57.9]} 6. f4 {[%clk 0:02:54.6]} 6... c4 {[%clk 0:02:54.4]}
7. Nf3 {[%clk 0:02:41.8]} 7... cxd3 {[%clk 0:02:52.5]} 8. cxd3 {[%clk
0:02:42.6]} 8... Nf6 {[%clk 0:02:49.7]} 9. O-O {[%clk 0:02:39.5]} 9... O-O
{[%clk 0:02:49.9]} 10. Kh1 {[%clk 0:02:39.4]} 10... b6 {[%clk 0:02:49.9]} 11.
Qe2 {[%clk 0:02:27.3]} 11... Ba6 {[%clk 0:02:30.2]} 12. Rd1 {[%clk 0:02:26.8]}
12... Qc7 {[%clk 0:02:25.7]} 13. Be3 {[%clk 0:02:26.5]} 13... Rfd8 {[%clk
0:02:24.7]} 14. Rac1 {[%clk 0:02:25.9]} 14... Rac8 {[%clk 0:02:24]} 15. Ne5
{[%clk 0:02:07.5]} 15... c5 {[%clk 0:02:20.6]} 16. Qc2 {[%clk 0:01:46.8]} 16...
e6 {[%clk 0:02:16.3]} 17. Bf2 {[%clk 0:01:42]} 17... Nd7 {[%clk 0:02:13.8]} 18.
Qa4 {[%clk 0:00:56.6]} 18... Nxe5 {[%clk 0:01:41.1]} 19. Qxa6 {[%clk 0:00:55.8]}
19... Ng4 {[%clk 0:01:39]} 20. Bg3 {[%clk 0:00:55.4]} 20... Qc6 {[%clk 0:00:54]}
21. h3 {[%clk 0:00:54]} 21... Ne3 {[%clk 0:00:48.6]} 22. Rd2 {[%clk 0:00:54]}
22... c4 {[%clk 0:00:38.5]} 23. Bf2 {[%clk 0:00:40.7]} 23... Bd4 {[%clk
0:00:22.8]} 24. Nb5 {[%clk 0:00:40.4]} 24... Bc5 {[%clk 0:00:16.2]} 25. Nxa7
{[%clk 0:00:35.2]} 25... Qa8 {[%clk 0:00:13.9]} 26. d4 {[%clk 0:00:29.4]} 26...
Qxe4 {[%clk 0:00:09.2]} 27. Bxe3 {[%clk 0:00:24.6]} 27... Qxe3 {[%clk
0:00:09.4]} 28. Rcd1 {[%clk 0:00:20.5]} 28... Ra8 {[%clk 0:00:09.6]} 29. Qb7
{[%clk 0:00:10.3]} 29... Bxd4 {[%clk 0:00:09.7]} 30. Nc6 {[%clk 0:00:07.9]} 1-0

[Event "Early-Titled-Tuesday-Blitz-January-30-2024"]
[Site "Chess.com"]
[Date "2024.01.30"]
[Round "4"]
[White "vladoboch"]
[Black "Durarbayli"]
[Result "0-1"]
[WhiteElo "2487"]
[BlackElo "2917"]
[TimeControl "180+1"]
[EndTime "8:41:06 PST"]
[Termination "Durarbayli won by resignation"]

1. e4 {[%clk 0:03:00.9]} 1... e5 {[%clk 0:03:00.2]} 2. Nf3 {[%clk 0:03:01.1]}
2... Nc6 {[%clk 0:03:00.9]} 3. Bc4 {[%clk 0:03:01.6]} 3... Nf6 {[%clk
0:03:01.2]} 4. d3 {[%clk 0:03:01.8]} 4... h6 {[%clk 0:03:00]} 5. O-O {[%clk
0:03:01]} 5... d6 {[%clk 0:02:58.9]} 6. Re1 {[%clk 0:03:00.8]} 6... g5 {[%clk
0:02:55.3]} 7. c3 {[%clk 0:03:00.1]} 7... Bg7 {[%clk 0:02:55.4]} 8. b4 {[%clk
0:02:55.8]} 8... O-O {[%clk 0:02:54.5]} 9. h3 {[%clk 0:02:49.7]} 9... Ne7 {[%clk
0:02:41]} 10. Nbd2 {[%clk 0:02:48.4]} 10... c6 {[%clk 0:02:40.8]} 11. Bb3 {[%clk
0:02:45.1]} 11... Ng6 {[%clk 0:02:41]} 12. Nf1 {[%clk 0:02:45]} 12... d5 {[%clk
0:02:40.6]} 13. Ng3 {[%clk 0:02:40.9]} 13... Re8 {[%clk 0:02:36]} 14. a4 {[%clk
0:02:38.7]} 14... Be6 {[%clk 0:02:34]} 15. Nf5 {[%clk 0:02:19.6]} 15... dxe4
{[%clk 0:02:25.9]} 16. dxe4 {[%clk 0:02:18.7]} 16... Qxd1 {[%clk 0:02:19.4]} 17.
Bxd1 {[%clk 0:02:18.4]} 17... Bxf5 {[%clk 0:01:45.5]} 18. exf5 {[%clk
0:02:18.4]} 18... e4 {[%clk 0:01:46.4]} 19. fxg6 {[%clk 0:01:50.1]} 19... exf3
{[%clk 0:01:46.5]} 20. Rxe8+ {[%clk 0:01:48.2]} 20... Rxe8 {[%clk 0:01:47.4]}
21. gxf7+ {[%clk 0:01:30.9]} 21... Kxf7 {[%clk 0:01:48.3]} 22. Be3 {[%clk
0:01:30.9]} 22... Nd5 {[%clk 0:01:40.2]} 23. Bxf3 {[%clk 0:01:10.9]} 23... Nxe3
{[%clk 0:01:03.5]} 24. Bh5+ {[%clk 0:00:53]} 24... Ke7 {[%clk 0:01:03.8]} 25.
Bxe8 {[%clk 0:00:53.9]} 25... Bxc3 {[%clk 0:01:03.8]} 26. Rb1 {[%clk 0:00:37.5]}
26... Nd5 {[%clk 0:00:59.1]} 27. Bg6 {[%clk 0:00:28.7]} 27... Bxb4 {[%clk
0:00:58.9]} 28. Be4 {[%clk 0:00:26]} 28... a5 {[%clk 0:00:58.3]} 29. Bxd5 {[%clk
0:00:17.4]} 29... cxd5 {[%clk 0:00:59.2]} 30. Kf1 {[%clk 0:00:17.6]} 30... Kd6
{[%clk 0:00:59.8]} 31. Ke2 {[%clk 0:00:18.1]} 31... b5 {[%clk 0:00:51.7]} 32.
axb5 {[%clk 0:00:17.4]} 32... Kc5 {[%clk 0:00:52.3]} 33. Kd3 {[%clk 0:00:17.2]}
33... Kxb5 {[%clk 0:00:52.7]} 34. g3 {[%clk 0:00:14.6]} 34... a4 {[%clk
0:00:45.2]} 35. f4 {[%clk 0:00:11.8]} 35... gxf4 {[%clk 0:00:46.1]} 36. gxf4
{[%clk 0:00:12.4]} 36... a3 {[%clk 0:00:46.5]} 37. Ra1 {[%clk 0:00:12.6]} 37...
Ka4 {[%clk 0:00:44.6]} 38. Kc2 {[%clk 0:00:09.3]} 38... d4 {[%clk 0:00:45]} 39.
f5 {[%clk 0:00:02.3]} 39... Bc3 {[%clk 0:00:44.1]} 40. Kd3 {[%clk 0:00:01.6]}
40... Bxa1 {[%clk 0:00:35]} 41. f6 {[%clk 0:00:02.1]} 41... a2 {[%clk
0:00:35.2]} 42. f7 {[%clk 0:00:02.9]} 42... Bc3 {[%clk 0:00:34.3]} 43. f8=Q
{[%clk 0:00:03.8]} 43... a1=Q {[%clk 0:00:34.7]} 44. Qa8+ {[%clk 0:00:04.1]}
44... Kb3 {[%clk 0:00:35]} 45. Qd5+ {[%clk 0:00:02.7]} 45... Kb2 {[%clk
0:00:35.2]} 46. Qb5+ {[%clk 0:00:02.9]} 46... Kc1 {[%clk 0:00:34.6]} 47. Qh5
{[%clk 0:00:01.1]} 47... Qb1+ {[%clk 0:00:34.3]} 48. Ke2 {[%clk 0:00:01.3]}
48... Qc2+ {[%clk 0:00:33.9]} 49. Kf1 {[%clk 0:00:01.9]} 49... Qd1+ {[%clk
0:00:34.1]} 50. Qxd1+ {[%clk 0:00:02.3]} 50... Kxd1 {[%clk 0:00:35]} 0-1

[Event "Early-Titled-Tuesday-Blitz-January-30-2024"]
[Site "Chess.com"]
[Date "2024.01.30"]
[Round "4"]
[White "ejalmedina"]
[Black "mr65"]
[Result "0-1"]
[WhiteElo "2299"]
[BlackElo "1917"]
[TimeControl "180+1"]
[EndTime "8:41:07 PST"]
[Termination "mr65 won on time"]

1. d4 {[%clk 0:03:00]} 1... Nf6 {[%clk 0:02:58.8]} 2. c4 {[%clk 0:02:58.5]} 2...
c5 {[%clk 0:02:57.2]} 3. d5 {[%clk 0:02:58]} 3... e6 {[%clk 0:02:56.9]} 4. Nc3
{[%clk 0:02:57]} 4... exd5 {[%clk 0:02:57]} 5. cxd5 {[%clk 0:02:57.9]} 5... d6
{[%clk 0:02:53.6]} 6. e4 {[%clk 0:02:58.3]} 6... g6 {[%clk 0:02:53.7]} 7. h3
{[%clk 0:02:58.5]} 7... Bg7 {[%clk 0:02:53.1]} 8. Nf3 {[%clk 0:02:59.1]} 8...
O-O {[%clk 0:02:52.2]} 9. Bd3 {[%clk 0:02:59.7]} 9... Re8 {[%clk 0:02:49.5]} 10.
O-O {[%clk 0:03:00]} 10... c4 {[%clk 0:02:49.4]} 11. Bc2 {[%clk 0:02:59.3]}
11... Nbd7 {[%clk 0:02:49.3]} 12. Re1 {[%clk 0:02:56.3]} 12... Nc5 {[%clk
0:02:42.5]} 13. Bf4 {[%clk 0:02:50.2]} 13... b5 {[%clk 0:02:21.7]} 14. a3 {[%clk
0:02:49.3]} 14... a6 {[%clk 0:02:19.8]} 15. Qd2 {[%clk 0:02:45.1]} 15... Ra7
{[%clk 0:02:08.6]} 16. Nd4 {[%clk 0:02:36.1]} 16... Bb7 {[%clk 0:01:59.7]} 17.
Rad1 {[%clk 0:02:23.8]} 17... Ba8 {[%clk 0:01:58.6]} 18. Nc6 {[%clk 0:02:01.4]}
18... Bxc6 {[%clk 0:01:57.1]} 19. dxc6 {[%clk 0:02:02.3]} 19... Rae7 {[%clk
0:01:48.6]} 20. e5 {[%clk 0:01:22.5]} 20... Nh5 {[%clk 0:01:42.6]} 21. Bg5
{[%clk 0:00:35.1]} 21... Bxe5 {[%clk 0:01:36.7]} 22. Bxe7 {[%clk 0:00:32.5]}
22... Rxe7 {[%clk 0:01:32.7]} 23. Nd5 {[%clk 0:00:28.7]} 23... Re8 {[%clk
0:01:25.7]} 24. c7 {[%clk 0:00:23.3]} 24... Qc8 {[%clk 0:01:20.5]} 25. Bb1
{[%clk 0:00:17.2]} 25... Ne6 {[%clk 0:01:14.5]} 26. g3 {[%clk 0:00:16.4]} 26...
Nxc7 {[%clk 0:01:11.4]} 27. Nxc7 {[%clk 0:00:14.9]} 27... Qxc7 {[%clk
0:01:10.7]} 28. f4 {[%clk 0:00:14.6]} 28... Qc5+ {[%clk 0:00:58.3]} 29. Kh2
{[%clk 0:00:14.6]} 29... Nxg3 {[%clk 0:00:24.4]} 30. fxe5 {[%clk 0:00:12.6]}
30... Nf5 {[%clk 0:00:19.7]} 31. exd6 {[%clk 0:00:10.6]} 31... Rd8 {[%clk
0:00:18.9]} 32. d7 {[%clk 0:00:09.6]} 32... Rxd7 {[%clk 0:00:18.1]} 33. Re8+
{[%clk 0:00:06.3]} 33... Kg7 {[%clk 0:00:15.5]} 34. Qc3+ {[%clk 0:00:02.7]}
34... Kh6 {[%clk 0:00:05.8]} 0-1